fUST/lending_fUST_20260603
["ID","MTS","AMOUNT","RATE_DAILY","PERIOD"]
[423777419,1780420232000,-500.0,0.00013596,2]
[423777509,1780420239000,-500.0,0.00013596,2]
[423777521,1780420239000,-500.0,0.00013596,2]
[423777525,1780420239000,-500.0,0.00013596,2]
[423777501,1780420239000,-500.0,0.00013596,2]
[423777511,1780420239000,-500.0,0.00013596,2]
[423777507,1780420239000,-500.0,0.00013596,2]
[423777505,1780420239000,-500.0,0.00013596,2]
[423777499,1780420239000,-500.0,0.00013596,2]
[423777489,1780420239000,-3865.910544,0.0001346,2]
[423777491,1780420239000,-500.0,0.00013596,2]
[423777487,1780420239000,-1134.089456,0.0001346,2]
[423777497,1780420239000,-500.0,0.00013596,2]
[423777493,1780420239000,-500.0,0.00013596,2]
[423777495,1780420239000,-500.0,0.00013596,2]
[423777517,1780420239000,-650.18306979,0.00013596,2]
[423777503,1780420239000,-500.0,0.00013596,2]
[423777519,1780420239000,-500.0,0.00013596,2]
[423777522,1780420239000,-500.0,0.00013596,2]
[423777526,1780420239000,-500.0,0.00013596,2]
[423777554,1780420239000,-15078.98942412,0.00013598,2]
[423777556,1780420239000,-2014.91020796,0.00013598,2]
[423777552,1780420239000,-647.81,0.00013598,2]
[423777550,1780420239000,-22675.14123652,0.00013598,2]
[423777534,1780420239000,-500.0,0.00013596,2]
[423777536,1780420239000,-196.36331181,0.00013596,2]
[423777532,1780420239000,-500.0,0.00013596,2]
[423777530,1780420239000,-500.0,0.00013596,2]
[423777558,1780420239000,-3995.58750031,0.00013598,2]
[423777546,1780420239000,-1224.85871026,0.00013598,2]
[423777542,1780420239000,-9626.36918446,0.00013598,2]
[423777528,1780420239000,-500.0,0.00013596,2]
[423777538,1780420239000,-500.0,0.00013596,2]
[423777540,1780420239000,-500.0,0.00013596,2]
[423777515,1780420239000,-500.0,0.00013596,2]
[423777513,1780420239000,-500.0,0.00013596,2]
[423777544,1780420239000,-56340.28924683,0.00013598,2]
[423777631,1780420241000,-1309.81679593,0.00013598,2]
[423777633,1780420241000,-4786.12112569,0.00013598,2]
[423777634,1780420241000,-13174.86962135,0.00013598,2]
[423777632,1780420241000,-7100.60916339,0.00013598,2]
[423777649,1780420244000,-443.0,0.00013462,2]
[423777646,1780420244000,-1948.3797128,0.00013462,2]
[423777648,1780420244000,-565.45,0.00013462,2]
[423777651,1780420244000,-90853.26642721,0.00013598,2]
[423777650,1780420244000,-1768.6622872,0.00013462,2]
[423777647,1780420244000,-274.508,0.00013462,2]
[423777652,1780420244000,-554.40260167,0.00013598,2]
[423777653,1780420244000,-37401.79256539,0.00013598,2]
[423777655,1780420244000,-1187.34,0.00013598,2]
[423777654,1780420244000,-2160.0,0.00013598,2]
[423777657,1780420244000,-9376.999065,0.00013598,2]
[423777656,1780420244000,-1226.85009399,0.00013598,2]
[423777664,1780420246000,-115389.1791184,0.00013598,2]
[423777663,1780420246000,-569.37999998,0.00013598,2]
[423777662,1780420246000,-2133.92329819,0.00013598,2]
[423777666,1780420247000,-25890.06642634,0.00013598,2]
[423777665,1780420247000,-131469.14805578,0.00013598,2]
[423777670,1780420297000,238.0,0.00023484,120]
[423777672,1780420376000,175.39,8.204e-05,2]
[423777679,1780420600000,283.54,8.204e-05,2]
[423777681,1780420640000,-579.53022854,0.00011056,2]
[423777682,1780420642000,-334.17124544,0.00011056,2]
[423777686,1780420825000,270.19,8.204e-05,2]
[423777689,1780420933000,162043.90231608,7.6e-05,2]
[423777688,1780420933000,269.89,7.6e-05,2]
[423777704,1780421368000,-200.0,9.243e-05,2]
[423777705,1780421368000,-2559.50497172,9.415e-05,2]
[423777720,1780421431000,-560.902,9.136e-05,2]
[423777738,1780421438000,-4439.098,9.136e-05,2]
[423777739,1780421438000,-429.6897619,9.227e-05,2]
[423777791,1780421440000,-350.70890288,9.227e-05,2]
[423777975,1780421491000,-4616.79522179,9.135e-05,2]
[423777976,1780421551000,152.0,0.0002,120]
[423777977,1780421552000,152.0,0.000216,120]
[423777978,1780421585000,-2575.11157421,8.954e-05,2]
[423777979,1780421587000,-656.10285088,8.954e-05,2]
[423777980,1780421589000,-245.5231763,8.954e-05,2]
[423777983,1780421825000,-2527.28599099,8.6e-05,2]
[423777986,1780421945000,5142.9803546,8.198e-05,2]
[423777991,1780422141000,5000.0,8.203e-05,2]
[423777992,1780422149000,5000.0,8.203e-05,2]
[423777993,1780422164000,4303.8542302,8.203e-05,2]
[423777994,1780422171000,3721.5860051,7.965e-05,2]
[423777995,1780422171000,5000.0,8.203e-05,2]
[423777996,1780422193000,5000.0,8.203e-05,2]
[423777997,1780422201000,5000.0,8.203e-05,2]
[423777998,1780422227000,163.547988,8.044e-05,2]
[423777999,1780422228000,163.547988,8.044e-05,120]
[423778004,1780422546000,-5000.0,8.344e-05,2]
[423778005,1780422546000,-1200.0,8.613e-05,2]
[423778008,1780422546000,-500.0,8.613e-05,2]
[423778007,1780422546000,-500.0,8.613e-05,2]
[423778006,1780422546000,-500.0,8.613e-05,2]
[423778010,1780422546000,-500.0,8.613e-05,2]
[423778011,1780422546000,-500.0,8.613e-05,2]
[423778012,1780422546000,-500.0,8.613e-05,2]
[423778013,1780422546000,-500.0,8.613e-05,2]
[423778014,1780422546000,-25.71553154,8.613e-05,2]
[423778009,1780422546000,-500.0,8.613e-05,2]
[423778015,1780422563000,-5000.0,8.527e-05,2]
[423778016,1780422563000,-168.43545373,8.613e-05,2]
[423778017,1780422563000,-500.0,8.613e-05,2]
[423778018,1780422563000,-504.89348709,8.613e-05,2]
[423778019,1780422563000,-500.0,8.613e-05,2]
[423778020,1780422563000,-500.0,8.613e-05,2]
[423778021,1780422563000,-500.0,8.613e-05,2]
[423778024,1780422563000,-500.0,8.613e-05,2]
[423778023,1780422563000,-500.0,8.613e-05,2]
[423778025,1780422563000,-500.0,8.613e-05,2]
[423778026,1780422563000,-500.0,8.613e-05,2]
[423778027,1780422563000,-36.67105918,8.613e-05,2]
[423778022,1780422563000,-500.0,8.613e-05,2]
[423778080,1780422632000,-430.02691736,8.442e-05,2]
[423778073,1780422632000,-834.65778021,8.442e-05,2]
[423778088,1780422632000,-3404.64511439,8.442e-05,2]
[423778091,1780422632000,-395.35488561,8.527e-05,2]
[423778093,1780422632000,-520.58013479,8.527e-05,2]
[423778139,1780422632000,-151.0,9.136e-05,7]
[423778089,1780422632000,-1200.0,8.526e-05,2]
[423778199,1780422638000,-400.39440872,9.593e-05,7]
[423778200,1780422638000,-2909.62325227,9.664e-05,2]
[423778195,1780422638000,-594.166122,9.457e-05,2]
[423778193,1780422638000,-229.99,9.376e-05,2]
[423778196,1780422638000,-420.0,9.474e-05,2]
[423778194,1780422638000,-1680.0,9.379e-05,2]
[423778192,1780422638000,-400.39440872,9.319e-05,7]
[423778197,1780422638000,-420.0,9.474e-05,2]
[423778190,1780422638000,-249.39440872,9.136e-05,7]
[423778189,1780422638000,-1539.7925092,9.123e-05,2]
[423778185,1780422638000,-300.0,8.613e-05,2]
[423778186,1780422638000,-300.0,8.613e-05,2]
[423778188,1780422638000,-594.166122,9.075e-05,2]
[423778183,1780422638000,-4084.0649796,8.527e-05,2]
[423778187,1780422638000,-2870.6881163,8.618e-05,2]
[423778184,1780422638000,-300.0,8.613e-05,2]
[423778198,1780422638000,-420.0,9.474e-05,2]
[423778201,1780422638000,-594.166122,9.839e-05,2]
[423778191,1780422638000,-6485.0005758,9.219e-05,2]
[423778206,1780422638000,-246.32050371,0.00010255,2]
[423778218,1780422638000,-250.0,0.00010741,2]
[423778205,1780422638000,-400.39440873,0.00010232,7]
[423778219,1780422638000,-674.37058273,0.00010795,2]
[423778217,1780422638000,-594.166122,0.00010603,2]
[423778216,1780422638000,-175.64612892,0.00010526,2]
[423778214,1780422638000,-443.73112997,0.00010526,2]
[423778215,1780422638000,-788.85534217,0.00010526,2]
[423778209,1780422638000,-300.0,0.00010422,2]
[423778208,1780422638000,-587.0,0.00010422,2]
[423778220,1780422638000,-303.21666354,0.00010858,2]
[423778210,1780422638000,-587.0,0.00010422,2]
[423778202,1780422638000,-400.39440872,9.867e-05,7]
[423778213,1780422638000,-246.51729443,0.00010526,2]
[423778212,1780422638000,-183.0,0.00010521,2]
[423778211,1780422638000,-294.91,0.00010514,2]
[423778207,1780422638000,-2351.0,0.00010316,2]
[423778203,1780422638000,-505.17239861,0.0001,2]
[423778204,1780422638000,-594.166122,0.00010221,2]
[423778254,1780422639000,-1000.0,0.00013698,2]
[423778256,1780422639000,-500.0,0.00013698,2]
[423778255,1780422639000,-500.40219254,0.00013698,2]
[423778245,1780422639000,-2628.22662699,0.00013598,2]
[423778248,1780422639000,-152.0,0.0001369,7]
[423778247,1780422639000,-500.0,0.00013674,2]
[423778249,1780422639000,-500.83338792,0.00013698,2]
[423778253,1780422639000,-500.0,0.00013698,2]
[423778252,1780422639000,-573.69115414,0.00013698,2]
[423778258,1780422639000,-500.0,0.00013698,2]
[423778266,1780422639000,-500.0,0.00013698,2]
[423778262,1780422639000,-501.87686599,0.00013698,2]
[423778260,1780422639000,-534.44284069,0.00013698,2]
[423778261,1780422639000,-500.0,0.00013698,2]
[423778257,1780422639000,-500.0,0.00013698,2]
[423778267,1780422639000,-500.0,0.00013698,2]
[423778264,1780422639000,-508.18888521,0.00013698,2]
[423778263,1780422639000,-500.0,0.00013698,2]
[423778276,1780422639000,-553.09236635,0.00013698,2]
[423778265,1780422639000,-500.0,0.00013698,2]
[423778246,1780422639000,-352.06003857,0.00013649,2]
[423778259,1780422639000,-501.04964608,0.00013698,2]
[423778244,1780422639000,-500.0,0.000134,2]
[423778222,1780422639000,-594.166122,0.00010985,2]
[423778243,1780422639000,-165.1648,0.00013326,2]
[423778268,1780422639000,-440.32266565,0.00013698,2]
[423778223,1780422639000,-152.0,0.00011134,2]
[423778224,1780422639000,-500.0,0.00011208,2]
[423778225,1780422639000,-296.74226445,0.00011208,2]
[423778226,1780422639000,-887.0,0.00011348,2]
[423778227,1780422639000,-979.15636687,0.00011447,7]
[423778221,1780422639000,-2255.3696701,0.00010959,2]
[423778228,1780422639000,-500.0,0.00011482,2]
[423778230,1780422639000,-500.0,0.00011756,2]
[423778229,1780422639000,-979.15636687,0.00011676,7]
[423778232,1780422639000,-979.15636687,0.00012019,7]
[423778233,1780422639000,-500.0,0.0001203,2]
[423778236,1780422639000,-216.0,0.00012521,2]
[423778231,1780422639000,-395.66671899,0.00011894,2]
[423778237,1780422639000,-500.0,0.00012578,2]
[423778238,1780422639000,-979.15636688,0.00012821,7]
[423778234,1780422639000,-500.0,0.00012304,2]
[423778235,1780422639000,-979.15636687,0.00012363,7]
[423778240,1780422639000,-500.0,0.00013126,2]
[423778251,1780422639000,-500.83054437,0.00013698,2]
[423778239,1780422639000,-500.0,0.00012852,2]
[423778241,1780422639000,-152.0,0.0001325,7]
[423778250,1780422639000,-501.93811449,0.00013698,2]
[423778242,1780422639000,-152.0,0.0001325,7]
[423778272,1780422639000,-501.68411549,0.00013698,2]
[423778281,1780422639000,-500.0,0.00013698,2]
[423778273,1780422639000,-500.0,0.00013698,2]
[423778301,1780422639000,-500.0,0.00013698,2]
[423778300,1780422639000,-500.0,0.00013698,2]
[423778302,1780422639000,-503.58475156,0.00013698,2]
[423778303,1780422639000,-503.86638745,0.00013698,2]
[423778305,1780422639000,-442.72395808,0.00013698,2]
[423778304,1780422639000,-504.37310872,0.00013698,2]
[423778308,1780422639000,-500.0,0.00013698,2]
[423778310,1780422639000,-500.0,0.00013698,2]
[423778306,1780422639000,-502.08940335,0.00013698,2]
[423778307,1780422639000,-500.0,0.00013698,2]
[423778298,1780422639000,-500.0,0.00013698,2]
[423778309,1780422639000,-636.73794718,0.00013698,2]
[423778314,1780422639000,-500.0,0.00013698,2]
[423778315,1780422639000,-500.0,0.00013698,2]
[423778313,1780422639000,-500.0,0.00013698,2]
[423778318,1780422639000,-500.0,0.00013698,2]
[423778316,1780422639000,-502.55814815,0.00013698,2]
[423778317,1780422639000,-500.0,0.00013698,2]
[423778319,1780422639000,-501.88689287,0.00013698,2]
[423778320,1780422639000,-364.01258467,0.00013698,2]
[423778321,1780422639000,-500.0,0.00013698,2]
[423778274,1780422639000,-369.62450799,0.00013698,2]
[423778311,1780422639000,-500.0,0.00013698,2]
[423778299,1780422639000,-533.03551151,0.00013698,2]
[423778312,1780422639000,-500.0,0.00013698,2]
[423778292,1780422639000,-500.0,0.00013698,2]
[423778296,1780422639000,-500.0,0.00013698,2]
[423778269,1780422639000,-501.54227944,0.00013698,2]
[423778270,1780422639000,-501.63223875,0.00013698,2]
[423778271,1780422639000,-500.0,0.00013698,2]
[423778275,1780422639000,-500.44231236,0.00013698,2]
[423778277,1780422639000,-500.0,0.00013698,2]
[423778280,1780422639000,-500.0,0.00013698,2]
[423778278,1780422639000,-500.0,0.00013698,2]
[423778282,1780422639000,-500.0,0.00013698,2]
[423778285,1780422639000,-622.31349743,0.00013698,2]
[423778286,1780422639000,-264.14368541,0.00013698,2]
[423778279,1780422639000,-501.48438737,0.00013698,2]
[423778294,1780422639000,-500.0,0.00013698,2]
[423778284,1780422639000,-252.10656088,0.00013698,2]
[423778288,1780422639000,-500.0,0.00013698,2]
[423778283,1780422639000,-306.69626674,0.00013698,2]
[423778289,1780422639000,-311.42242817,0.00013698,2]
[423778291,1780422639000,-500.0,0.00013698,2]
[423778290,1780422639000,-501.01912894,0.00013698,2]
[423778295,1780422639000,-500.0,0.00013698,2]
[423778297,1780422639000,-628.84187674,0.00013698,2]
[423778293,1780422639000,-500.0,0.00013698,2]
[423778287,1780422639000,-235.85631459,0.00013698,2]
[423778364,1780422640000,-500.0,0.00013698,2]
[423778355,1780422640000,-500.0,0.00013698,2]
[423778357,1780422640000,-500.0,0.00013698,2]
[423778359,1780422640000,-500.0,0.00013698,2]
[423778361,1780422640000,-501.42643817,0.00013698,2]
[423778358,1780422640000,-500.0,0.00013698,2]
[423778363,1780422640000,-500.0,0.00013698,2]
[423778354,1780422640000,-500.0,0.00013698,2]
[423778365,1780422640000,-500.0,0.00013698,2]
[423778356,1780422640000,-500.0,0.00013698,2]
[423778360,1780422640000,-500.0,0.00013698,2]
[423778366,1780422640000,-513.96098447,0.00013698,2]
[423778362,1780422640000,-500.0,0.00013698,2]
[423778380,1780422640000,-500.0,0.00013698,2]
[423778368,1780422640000,-500.4817354,0.00013698,2]
[423778371,1780422640000,-500.0,0.00013698,2]
[423778369,1780422640000,-501.15919638,0.00013698,2]
[423778370,1780422640000,-500.0,0.00013698,2]
[423778372,1780422640000,-500.0,0.00013698,2]
[423778375,1780422640000,-501.19105346,0.00013698,2]
[423778377,1780422640000,-500.0,0.00013698,2]
[423778374,1780422640000,-508.46140182,0.00013698,2]
[423778378,1780422640000,-500.0,0.00013698,2]
[423778373,1780422640000,-369.20015425,0.00013698,2]
[423778386,1780422640000,-500.0,0.00013698,2]
[423778388,1780422640000,-500.0,0.00013698,2]
[423778345,1780422640000,-500.0,0.00013698,2]
[423778367,1780422640000,-500.0,0.00013698,2]
[423778350,1780422640000,-500.0,0.00013698,2]
[423778324,1780422640000,-500.0,0.00013698,2]
[423778346,1780422640000,-500.0,0.00013698,2]
[423778323,1780422640000,-500.0,0.00013698,2]
[423778327,1780422640000,-459.73859093,0.00013698,2]
[423778325,1780422640000,-500.0,0.00013698,2]
[423778326,1780422640000,-500.0,0.00013698,2]
[423778322,1780422640000,-500.0,0.00013698,2]
[423778387,1780422640000,-500.0,0.00013698,2]
[423778329,1780422640000,-501.56567301,0.00013698,2]
[423778331,1780422640000,-500.0,0.00013698,2]
[423778328,1780422640000,-500.0,0.00013698,2]
[423778340,1780422640000,-500.9674394,0.00013698,2]
[423778339,1780422640000,-500.0,0.00013698,2]
[423778330,1780422640000,-500.0,0.00013698,2]
[423778335,1780422640000,-500.0,0.00013698,2]
[423778349,1780422640000,-500.0,0.00013698,2]
[423778334,1780422640000,-500.0,0.00013698,2]
[423778336,1780422640000,-500.0,0.00013698,2]
[423778332,1780422640000,-500.2135633,0.00013698,2]
[423778337,1780422640000,-500.0,0.00013698,2]
[423778338,1780422640000,-412.02867537,0.00013698,2]
[423778341,1780422640000,-500.72867244,0.00013698,2]
[423778343,1780422640000,-500.0,0.00013698,2]
[423778352,1780422640000,-500.0,0.00013698,2]
[423778353,1780422640000,-501.00308621,0.00013698,2]
[423778342,1780422640000,-500.0,0.00013698,2]
[423778348,1780422640000,-500.75131454,0.00013698,2]
[423778351,1780422640000,-500.0,0.00013698,2]
[423778347,1780422640000,-500.22476499,0.00013698,2]
[423778344,1780422640000,-500.0,0.00013698,2]
[423778333,1780422640000,-500.0,0.00013698,2]
[423778389,1780422640000,-500.0,0.00013698,2]
[423778376,1780422640000,-500.0,0.00013698,2]
[423778379,1780422640000,-500.0,0.00013698,2]
[423778411,1780422640000,-453.42097608,0.00013698,2]
[423778419,1780422640000,-500.0,0.00013698,2]
[423778422,1780422640000,-500.0,0.00013698,2]
[423778421,1780422640000,-500.0,0.00013698,2]
[423778423,1780422640000,-500.0,0.00013698,2]
[423778424,1780422640000,-501.04755555,0.00013698,2]
[423778425,1780422640000,-500.0,0.00013698,2]
[423778420,1780422640000,-501.98033126,0.00013698,2]
[423778426,1780422640000,-500.3924766,0.00013698,2]
[423778427,1780422640000,-500.79986804,0.00013698,2]
[423778431,1780422640000,-500.0,0.00013698,2]
[423778429,1780422640000,-500.0,0.00013698,2]
[423778430,1780422640000,-500.0,0.00013698,2]
[423778432,1780422640000,-500.0,0.00013698,2]
[423778434,1780422640000,-500.0,0.00013698,2]
[423778433,1780422640000,-500.0,0.00013698,2]
[423778441,1780422640000,-500.0,0.00013698,2]
[423778440,1780422640000,-500.0,0.00013698,2]
[423778442,1780422640000,-500.0,0.00013698,2]
[423778439,1780422640000,-500.0,0.00013698,2]
[423778435,1780422640000,-500.0,0.00013698,2]
[423778436,1780422640000,-500.0,0.00013698,2]
[423778438,1780422640000,-500.0,0.00013698,2]
[423778437,1780422640000,-380.51584571,0.00013698,2]
[423778444,1780422640000,-500.0,0.00013698,2]
[423778443,1780422640000,-500.0,0.00013698,2]
[423778446,1780422640000,-502.41508264,0.00013698,2]
[423778390,1780422640000,-500.0,0.00013698,2]
[423778445,1780422640000,-500.36880453,0.00013698,2]
[423778414,1780422640000,-500.0,0.00013698,2]
[423778412,1780422640000,-500.0,0.00013698,2]
[423778428,1780422640000,-500.0,0.00013698,2]
[423778416,1780422640000,-501.1634648,0.00013698,2]
[423778391,1780422640000,-501.41085112,0.00013698,2]
[423778413,1780422640000,-406.53927287,0.00013698,2]
[423778382,1780422640000,-500.0,0.00013698,2]
[423778384,1780422640000,-513.12326964,0.00013698,2]
[423778385,1780422640000,-500.0,0.00013698,2]
[423778381,1780422640000,-500.0,0.00013698,2]
[423778392,1780422640000,-288.90646088,0.00013698,2]
[423778395,1780422640000,-435.83795617,0.00013698,2]
[423778394,1780422640000,-502.38744692,0.00013698,2]
[423778393,1780422640000,-486.47429397,0.00013698,2]
[423778396,1780422640000,-500.0,0.00013698,2]
[423778397,1780422640000,-501.40480013,0.00013698,2]
[423778398,1780422640000,-500.0,0.00013698,2]
[423778399,1780422640000,-481.80642524,0.00013698,2]
[423778383,1780422640000,-401.57837001,0.00013698,2]
[423778404,1780422640000,-500.0,0.00013698,2]
[423778403,1780422640000,-500.0,0.00013698,2]
[423778415,1780422640000,-500.0,0.00013698,2]
[423778408,1780422640000,-501.33494906,0.00013698,2]
[423778410,1780422640000,-500.0,0.00013698,2]
[423778417,1780422640000,-500.0,0.00013698,2]
[423778409,1780422640000,-635.13266196,0.00013698,2]
[423778406,1780422640000,-500.98498488,0.00013698,2]
[423778407,1780422640000,-561.00951653,0.00013698,2]
[423778405,1780422640000,-500.0,0.00013698,2]
[423778402,1780422640000,-500.0,0.00013698,2]
[423778400,1780422640000,-500.0,0.00013698,2]
[423778418,1780422640000,-500.0,0.00013698,2]
[423778401,1780422640000,-500.0,0.00013698,2]
[423778486,1780422641000,-500.0,0.00013698,2]
[423778485,1780422641000,-500.0,0.00013698,2]
[423778488,1780422641000,-500.0,0.00013698,2]
[423778487,1780422641000,-500.0,0.00013698,2]
[423778475,1780422641000,-541.99996778,0.00013698,2]
[423778494,1780422641000,-500.0,0.00013698,2]
[423778484,1780422641000,-500.0,0.00013698,2]
[423778483,1780422641000,-279.25870389,0.00013698,2]
[423778482,1780422641000,-500.0,0.00013698,2]
[423778473,1780422641000,-503.02682593,0.00013698,2]
[423778489,1780422641000,-500.0,0.00013698,2]
[423778476,1780422641000,-500.0,0.00013698,2]
[423778493,1780422641000,-500.0,0.00013698,2]
[423778490,1780422641000,-500.0,0.00013698,2]
[423778504,1780422641000,-500.0,0.00013698,2]
[423778492,1780422641000,-1000.0,0.00013698,2]
[423778496,1780422641000,-500.0,0.00013698,2]
[423778495,1780422641000,-500.0,0.00013698,2]
[423778503,1780422641000,-500.0,0.00013698,2]
[423778497,1780422641000,-500.0,0.00013698,2]
[423778505,1780422641000,-500.0,0.00013698,2]
[423778507,1780422641000,-514.56392079,0.00013698,2]
[423778506,1780422641000,-501.43343897,0.00013698,2]
[423778502,1780422641000,-500.0,0.00013698,2]
[423778498,1780422641000,-516.55,0.00013698,2]
[423778500,1780422641000,-500.0,0.00013698,2]
[423778501,1780422641000,-502.56976563,0.00013698,2]
[423778477,1780422641000,-500.0,0.00013698,2]
[423778491,1780422641000,-500.0,0.00013698,2]
[423778474,1780422641000,-500.0,0.00013698,2]
[423778447,1780422641000,-500.0,0.00013698,2]
[423778471,1780422641000,-500.0,0.00013698,2]
[423778499,1780422641000,-500.0,0.00013698,2]
[423778448,1780422641000,-500.0,0.00013698,2]
[423778450,1780422641000,-490.0,0.00013698,2]
[423778453,1780422641000,-500.90345628,0.00013698,2]
[423778451,1780422641000,-500.0,0.00013698,2]
[423778449,1780422641000,-500.0,0.00013698,2]
[423778452,1780422641000,-500.0,0.00013698,2]
[423778454,1780422641000,-500.0,0.00013698,2]
[423778456,1780422641000,-500.37576945,0.00013698,2]
[423778458,1780422641000,-500.54679965,0.00013698,2]
[423778459,1780422641000,-500.0,0.00013698,2]
[423778455,1780422641000,-500.0,0.00013698,2]
[423778457,1780422641000,-500.0,0.00013698,2]
[423778472,1780422641000,-500.0,0.00013698,2]
[423778460,1780422641000,-500.0,0.00013698,2]
[423778463,1780422641000,-500.0,0.00013698,2]
[423778464,1780422641000,-500.0,0.00013698,2]
[423778466,1780422641000,-470.11044766,0.00013698,2]
[423778465,1780422641000,-500.0,0.00013698,2]
[423778461,1780422641000,-500.0,0.00013698,2]
[423778468,1780422641000,-500.0,0.00013698,2]
[423778467,1780422641000,-500.0,0.00013698,2]
[423778481,1780422641000,-500.0,0.00013698,2]
[423778479,1780422641000,-500.0,0.00013698,2]
[423778480,1780422641000,-358.99836784,0.00013698,2]
[423778469,1780422641000,-500.0,0.00013698,2]
[423778478,1780422641000,-455.23584896,0.00013698,2]
[423778470,1780422641000,-500.0,0.00013698,2]
[423778462,1780422641000,-500.0,0.00013698,2]
[423778508,1780422641000,-500.0,0.00013698,2]
[423778566,1780422641000,-500.0,0.00013698,2]
[423778510,1780422641000,-500.0,0.00013698,2]
[423778543,1780422641000,-500.0,0.00013698,2]
[423778546,1780422641000,-151.0,0.00013698,2]
[423778552,1780422641000,-500.0,0.00013698,2]
[423778553,1780422641000,-500.86504393,0.00013698,2]
[423778550,1780422641000,-644.65653828,0.00013698,2]
[423778547,1780422641000,-151.0,0.00013698,2]
[423778549,1780422641000,-500.0,0.00013698,2]
[423778555,1780422641000,-501.25476523,0.00013698,2]
[423778554,1780422641000,-990.06,0.00013698,2]
[423778558,1780422641000,-500.0,0.00013698,2]
[423778548,1780422641000,-501.2765277,0.00013698,2]
[423778557,1780422641000,-500.0,0.00013698,2]
[423778551,1780422641000,-500.0,0.00013698,2]
[423778542,1780422641000,-502.12331871,0.00013698,2]
[423778556,1780422641000,-500.950916,0.00013698,2]
[423778561,1780422641000,-501.31517033,0.00013698,2]
[423778560,1780422641000,-500.0,0.00013698,2]
[423778570,1780422641000,-500.0,0.00013698,2]
[423778562,1780422641000,-500.0,0.00013698,2]
[423778571,1780422641000,-500.0,0.00013698,2]
[423778563,1780422641000,-500.53177417,0.00013698,2]
[423778564,1780422641000,-500.0,0.00013698,2]
[423778565,1780422641000,-500.0,0.00013698,2]
[423778568,1780422641000,-502.29997054,0.00013698,2]
[423778567,1780422641000,-500.0,0.00013698,2]
[423778569,1780422641000,-501.20150084,0.00013698,2]
[423778572,1780422641000,-501.49742891,0.00013698,2]
[423778512,1780422641000,-500.0,0.00013698,2]
[423778559,1780422641000,-540.99858741,0.00013698,2]
[423778541,1780422641000,-856.75,0.00013698,2]
[423778573,1780422641000,-500.0,0.00013698,2]
[423778540,1780422641000,-330.53275761,0.00013698,2]
[423778539,1780422641000,-500.0,0.00013698,2]
[423778509,1780422641000,-500.59247305,0.00013698,2]
[423778518,1780422641000,-460.4,0.00013698,2]
[423778515,1780422641000,-500.0,0.00013698,2]
[423778514,1780422641000,-500.84223647,0.00013698,2]
[423778513,1780422641000,-500.0,0.00013698,2]
[423778516,1780422641000,-505.6434876,0.00013698,2]
[423778517,1780422641000,-500.0,0.00013698,2]
[423778520,1780422641000,-500.0,0.00013698,2]
[423778519,1780422641000,-222.78065659,0.00013698,2]
[423778531,1780422641000,-500.0,0.00013698,2]
[423778530,1780422641000,-500.0,0.00013698,2]
[423778532,1780422641000,-500.0,0.00013698,2]
[423778521,1780422641000,-500.0,0.00013698,2]
[423778511,1780422641000,-500.65037781,0.00013698,2]
[423778533,1780422641000,-500.0,0.00013698,2]
[423778544,1780422641000,-515.68644874,0.00013698,2]
[423778538,1780422641000,-500.0,0.00013698,2]
[423778537,1780422641000,-500.0,0.00013698,2]
[423778535,1780422641000,-506.90328137,0.00013698,2]